fUST/lending_fUST_20251018
["ID","MTS","AMOUNT","RATE_DAILY","PERIOD"]
[391715300,1760743804862,-300.0,0.00026923,2]
[391715301,1760743804892,-300.0,0.00026923,2]
[391715302,1760743804961,-6400.01,0.00026924,2]
[391715303,1760743805049,-10000.01,0.00026924,2]
[391715304,1760743819983,-170.65,0.00019475,2]
[391715305,1760743820014,-341.3,0.00020402,2]
[391715306,1760743820045,-511.96,0.00021329,2]
[391715307,1760743820076,-682.61,0.00022257,2]
[391715308,1760743820107,-853.26,0.00023184,2]
[391715309,1760743820139,-1023.91,0.00024111,2]
[391715310,1760743820169,-500.0,0.00025716,6]
[391715311,1760743820197,-500.0,0.00025716,6]
[391715312,1760743820226,-332.63,0.00025716,6]
[391715313,1760743820366,-1194.57,0.00025039,2]
[391715314,1760743820395,-167.37,0.00025716,6]
[391715315,1760743820424,-500.0,0.00025716,6]
[391715316,1760743820452,-500.0,0.00025716,6]
[391715317,1760743820480,-276.13,0.00026388,2]
[391715318,1760743820574,-4723.87,0.00026388,2]
[391715319,1760743820692,-2809.55051105,0.00026655,2]
[391715320,1760743820721,-181.08010149,0.00026924,2]
[391715321,1760743820809,-300.0,0.00025966,2]
[391715322,1760743820886,-1065.22,0.00025966,2]
[391715323,1760743820895,-835.38938746,0.00026924,2]
[391715324,1760743820910,-552.27,0.00026924,2]
[391715325,1760743820934,-2809.55051105,0.00026924,2]
[391715326,1760743820949,-181.08010149,0.00026924,2]
[391715327,1760743820968,-4018.74877492,0.00026924,2]
[391715328,1760743824208,-223.23,0.00025716,6]
[391715329,1760743825908,-1535.87,0.00026893,2]
[391715330,1760743825967,-6928.27,0.00026924,2]
[391715331,1760743826019,-4579.05549134,0.00026924,2]
[391715332,1760743826043,-841.89901732,0.00026924,2]
[391715333,1760743826178,-755.09875656,0.00026924,2]
[391715334,1760743826206,-166.0,0.00026924,2]
[391715335,1760743826264,-8157.81248688,0.00026924,2]
[391715336,1760743826294,-10000.01,0.00026924,2]
[391715337,1760743826458,-4964.84130058,0.00026924,2]
[391715338,1760743826503,-70.32739884,0.00026924,5]
[391715339,1760743828243,300.0,0.000161,2]
[391715358,1760743831930,-5000.0,0.00026655,2]
[391715359,1760743831969,-0.01,0.00026924,2]
[391715360,1760743832057,-213.96766586,0.00026924,2]
[391715361,1760743832088,-429.67260116,0.00026924,5]
[391715363,1760743832118,-252.431837,0.00026924,7]
[391715364,1760743832148,-252.431837,0.00026924,7]
[391715365,1760743832178,-252.431837,0.00026924,7]
[391715366,1760743832209,-252.431837,0.00026924,7]
[391715367,1760743832242,-151.0,0.00026924,7]
[391715368,1760743832272,-151.0,0.00026924,7]
[391715369,1760743832301,-151.0,0.00026924,7]
[391715370,1760743832493,-151.0,0.00026924,7]
[391715371,1760743832523,-151.0,0.00026924,7]
[391715372,1760743832553,-163.483409,0.00026924,7]
[391715373,1760743832582,-163.483409,0.00026924,7]
[391715374,1760743832610,-163.483409,0.00026924,7]
[391715375,1760743832641,-163.483409,0.00026924,7]
[391715376,1760743832669,-151.0,0.00026924,7]
[391715377,1760743832698,-151.0,0.00026924,7]
[391715378,1760743832725,-151.0,0.00026924,7]
[391715379,1760743832755,-151.0,0.00026924,7]
[391715380,1760743832784,-151.0,0.00026924,7]
[391715381,1760743832816,-151.0,0.00026924,7]
[391715382,1760743832845,-151.0,0.00026924,7]
[391715383,1760743832873,-151.0,0.00026924,7]
[391715384,1760743832902,-200.0,0.00026924,10]
[391715385,1760743832931,-200.0,0.00026924,10]
[391715386,1760743832960,-200.0,0.00026924,10]
[391715387,1760743832990,-59.40749796,0.00026924,10]
[391715388,1760743833959,-140.59250204,0.00026924,10]
[391715391,1760743837931,-200.0,0.00026924,10]
[391715392,1760743837940,-200.0,0.00026924,10]
[391715393,1760743837950,-200.0,0.00026924,10]
[391715394,1760743837958,-200.0,0.00026924,10]
[391715395,1760743837967,-200.0,0.00026924,10]
[391715396,1760743837976,-200.0,0.00026924,10]
[391715397,1760743837986,-200.0,0.00026924,10]
[391715398,1760743837994,-200.0,0.00026924,10]
[391715399,1760743838003,-200.0,0.00026924,10]
[391715400,1760743838012,-200.0,0.00026924,10]
[391715401,1760743838021,-200.0,0.00026924,10]
[391715402,1760743838030,-200.0,0.00026924,10]
[391715403,1760743838039,-200.0,0.00026924,10]
[391715405,1760743838049,-200.0,0.00026924,10]
[391715407,1760743838058,-200.0,0.00026924,10]
[391715408,1760743838067,-200.0,0.00026924,10]
[391715410,1760743838077,-200.0,0.00026924,10]
[391715413,1760743838087,-200.0,0.00026924,10]
[391715414,1760743838096,-200.0,0.00026924,10]
[391715416,1760743838105,-200.0,0.00026924,10]
[391715418,1760743838114,-200.0,0.00026924,10]
[391715420,1760743838124,-200.0,0.00026924,10]
[391715422,1760743838133,-200.0,0.00026924,10]
[391715424,1760743838143,-200.0,0.00026924,10]
[391715426,1760743838152,-200.0,0.00026924,10]
[391715427,1760743838161,-200.0,0.00026924,10]
[391715429,1760743838170,-200.0,0.00026924,10]
[391715430,1760743838179,-200.0,0.00026924,10]
[391715431,1760743838188,-200.0,0.00026924,10]
[391715432,1760743838197,-200.0,0.00026924,10]
[391715433,1760743838207,-200.0,0.00026924,10]
[391715434,1760743838216,-200.0,0.00026924,10]
[391715435,1760743838227,-200.0,0.00026924,10]
[391715436,1760743838236,-200.0,0.00026924,10]
[391715437,1760743838246,-200.0,0.00026924,10]
[391715438,1760743838255,-200.0,0.00026924,10]
[391715439,1760743838265,-200.0,0.00026924,10]
[391715440,1760743838275,-200.0,0.00026924,10]
[391715441,1760743838284,-200.0,0.00026924,10]
[391715442,1760743838294,-200.0,0.00026924,10]
[391715443,1760743838303,-128.1814668,0.00026924,10]
[391715444,1760743838315,-71.8185332,0.00026924,10]
[391715445,1760743838465,-200.0,0.00026924,10]
[391715446,1760743838483,-200.0,0.00026924,10]
[391715447,1760743838493,-200.0,0.00026924,10]
[391715448,1760743838502,-200.0,0.00026924,10]
[391715449,1760743838512,-200.0,0.00026924,10]
[391715450,1760743838521,-200.0,0.00026924,10]
[391715451,1760743838531,-200.0,0.00026924,10]
[391715452,1760743838541,-200.0,0.00026924,10]
[391715453,1760743838550,-200.0,0.00026924,10]
[391715454,1760743838559,-200.0,0.00026924,10]
[391715455,1760743838570,-200.0,0.00026924,10]
[391715456,1760743838579,-212.741442,0.00026924,10]
[391715457,1760743838588,-154.600516,0.00026924,7]
[391715458,1760743838597,-402.69031254,0.00026924,10]
[391715459,1760743838607,-151.0,0.00026924,7]
[391715460,1760743838616,-154.086887,0.00026924,7]
[391715461,1760743838625,-308.5292849,0.00026924,7]
[391715462,1760743838637,-11.3592791,0.00026924,7]
[391715463,1760743838646,-151.0,0.00026924,7]
[391715464,1760743838655,-319.888564,0.00026924,7]
[391715465,1760743838664,-151.0,0.00026924,7]
[391715466,1760743838674,-319.888564,0.00026924,7]
[391715467,1760743838683,-319.888564,0.00026924,7]
[391715468,1760743838692,-151.0,0.00026924,7]
[391715469,1760743838701,-151.0,0.00026924,7]
[391715470,1760743838711,-151.0,0.00026924,7]
[391715471,1760743838720,-188.412199,0.00026924,7]
[391715472,1760743838730,-188.412199,0.00026924,7]
[391715473,1760743838739,-151.0,0.00026924,7]
[391715474,1760743838749,-188.412199,0.00026924,7]
[391715475,1760743838759,-151.0,0.00026924,7]
[391715476,1760743838769,-188.412199,0.00026924,7]
[391715477,1760743838778,-151.0,0.00026924,7]
[391715478,1760743838787,-151.0,0.00026924,7]
[391715479,1760743838796,-151.0,0.00026924,7]
[391715480,1760743838807,-349.630046,0.00026924,7]
[391715482,1760743838816,-349.630046,0.00026924,7]
[391715483,1760743838825,-349.630046,0.00026924,7]
[391715484,1760743838834,-349.630046,0.00026924,7]
[391715485,1760743838843,-151.898794,0.00026924,7]
[391715486,1760743838854,-151.0,0.00026924,7]
[391715487,1760743838864,-718.93366,0.00026924,7]
[391715488,1760743838874,-151.0,0.00026924,7]
[391715489,1760743838885,-718.93366,0.00026924,7]
[391715490,1760743838894,-718.93366,0.00026924,7]
[391715491,1760743838903,-718.93366,0.00026924,7]
[391715492,1760743838913,-183.572492,0.00026924,7]
[391715493,1760743838923,-183.572492,0.00026924,7]
[391715494,1760743838934,-183.572492,0.00026924,7]
[391715495,1760743838943,-1000.0,0.00026924,2]
[391715496,1760743838953,-183.572492,0.00026924,7]
[391715497,1760743838962,-417.15472785,0.00026924,10]
[391715498,1760743838971,-417.15472785,0.00026924,7]
[391715499,1760743838980,-14658.23173704,0.00026924,2]
[391715500,1760743838990,-1657.5022843,0.00026926,2]
[391715501,1760743839000,-497.31065069,0.00026933,2]
[391715502,1760743839009,-239.28784612,0.00026933,2]
[391715503,1760743839019,-200.0,0.00026933,2]
[391715504,1760743839028,-201.4637601,0.00026933,2]
[391715505,1760743839038,-443.77,0.00026933,7]
[391715506,1760743839048,-518.1546706,0.00026933,2]
[391715507,1760743839057,-500.0,0.00026933,2]
[391715508,1760743839067,-400.28027283,0.00026933,2]
[391715509,1760743839076,-151.0,0.00026933,7]
[391715510,1760743839086,-151.0,0.00026933,7]
[391715511,1760743839095,-250.0645453,0.00026933,7]
[391715512,1760743839105,-151.0,0.00026933,7]
[391715513,1760743839115,-151.0,0.00026933,7]
[391715514,1760743839124,-151.0,0.00026933,7]
[391715515,1760743839133,-1271.453511,0.00026933,7]
[391715516,1760743839143,-151.0,0.00026933,2]
[391715517,1760743839153,-1271.453511,0.00026933,7]
[391715518,1760743839162,-151.0,0.00026933,7]
[391715519,1760743839172,-151.0,0.00026933,7]
[391715520,1760743839182,-303.654175,0.00026933,7]
[391715521,1760743839191,-151.0,0.00026933,7]
[391715522,1760743839201,-1271.453511,0.00026933,7]
[391715523,1760743839210,-151.0,0.00026933,7]
[391715524,1760743839220,-151.0,0.00026933,7]
[391715525,1760743839230,-303.654175,0.00026933,7]
[391715526,1760743839240,-151.0,0.00026933,7]
[391715527,1760743839250,-1271.453511,0.00026933,7]
[391715528,1760743839260,-151.0,0.00026933,7]
[391715529,1760743839269,-303.654175,0.00026933,7]
[391715530,1760743839279,-151.0,0.00026933,7]
[391715531,1760743839288,-303.654175,0.00026933,7]
[391715532,1760743839297,-151.0,0.00026933,7]
[391715533,1760743839306,-151.0,0.00026933,7]
[391715534,1760743839316,-326.135978,0.00026933,7]
[391715535,1760743839325,-326.135978,0.00026933,7]
[391715536,1760743839334,-326.135978,0.00026933,7]
[391715537,1760743839344,-326.135978,0.00026933,7]
[391715538,1760743839354,-600.28829,0.00026933,7]
[391715539,1760743839363,-600.28829,0.00026933,7]
[391715540,1760743839373,-600.28829,0.00026933,7]
[391715541,1760743839382,-600.28829,0.00026933,7]
[391715542,1760743839392,-151.0,0.00026933,7]
[391715543,1760743839401,-197.123568,0.00026933,7]
[391715544,1760743839411,-151.0,0.00026933,7]
[391715545,1760743839421,-151.0,0.00026933,7]
[391715546,1760743839431,-151.0,0.00026933,7]
[391715547,1760743839441,-151.0,0.00026933,7]
[391715548,1760743839450,-5000.0,0.00026933,2]
[391715549,1760743839460,-20378.06451736,0.00026934,2]
[391715615,1760743840345,-76.77000003,0.00024953,2]
[391715637,1760743840735,300.0,0.000161,2]
[391715638,1760743841167,-4923.22999997,0.00024953,2]
[391715682,1760743843037,-167.34015194,0.00026824,2]
[391715683,1760743843047,-134.65984806,0.00026924,3]
[391715684,1760743843193,-1558.30015194,0.00026924,3]
[391715685,1760743843203,-499.10303545,0.00026933,2]
[391715687,1760743843212,-8590.10119623,0.00026934,2]
[391715688,1760743843224,-1314.18206333,0.00026934,2]
[391715697,1760743846206,-453.0,0.00026934,2]
[391715698,1760743850681,-379.26417607,0.00025948,2]
[391715699,1760743853485,153.55000006,0.000161,2]
[391715700,1760743853511,146.44999994,0.000161,2]
[391715701,1760743853761,-2300.58,0.00025948,2]
[391715702,1760743855055,5000.0,0.00024953,2]
[391715703,1760743860244,661.67178656,0.00020402,2]
[391715704,1760743863027,3218.71046007,0.00024953,2]
[391715705,1760743866864,300.0,0.000161,2]
[391715706,1760743871299,-1445.28735047,0.00025176,2]
[391715707,1760743871931,-300.0,0.00025349,2]
[391715708,1760743873918,-172.41882246,0.00025349,2]
[391715709,1760743876059,-300.0,0.00025349,2]
[391715710,1760743878157,-172.5,0.00025349,2]
[391715711,1760743878763,3754.76067193,0.00025176,2]
[391715712,1760743879726,-172.5,0.00025349,2]
[391715713,1760743880083,300.0,0.000161,2]
[391715714,1760743886648,2226.17850983,0.00025176,2]
[391715715,1760743887612,200.0,0.0001551,2]
[391715716,1760743887648,200.0,0.00015536,2]
[391715717,1760743887674,-172.5,0.00025349,2]
[391715718,1760743887739,200.0,0.00015562,2]
[391715719,1760743887817,200.0,0.00015588,2]
[391715720,1760743887881,28.4961173,0.00015615,2]
[391715721,1760743887904,171.5038827,0.00015615,2]
[391715722,1760743887950,200.0,0.00015641,2]
[391715723,1760743888022,200.0,0.00015667,2]
[391715724,1760743888095,200.0,0.00015693,2]
[391715725,1760743888160,200.0,0.00015719,2]
[391715726,1760743888252,200.0,0.00015745,2]
[391715727,1760743888322,200.0,0.00015772,2]
[391715728,1760743888431,200.0,0.00015798,2]
[391715729,1760743888466,200.0,0.00015824,2]
[391715730,1760743888565,200.0,0.0001585,2]
[391715731,1760743888633,200.0,0.00015876,2]
[391715732,1760743888696,200.0,0.00015902,2]
[391715733,1760743888772,200.0,0.00015929,2]
[391715734,1760743888948,200.0,0.00015955,2]
[391715735,1760743889021,200.0,0.00015981,2]
[391715736,1760743889087,200.0,0.00016007,2]
[391715737,1760743889152,200.0,0.00016033,2]
[391715738,1760743889214,200.0,0.00016059,2]
[391715739,1760743889279,200.0,0.00016086,2]
[391715740,1760743889347,200.0,0.00016112,2]
[391715741,1760743889412,200.0,0.00016138,2]
[391715742,1760743889486,200.0,0.00016164,2]
[391715743,1760743889553,200.0,0.0001619,2]
[391715744,1760743889621,200.0,0.00016216,2]
[391715745,1760743889692,200.0,0.00016243,2]
[391715746,1760743889764,200.0,0.00016269,2]
[391715747,1760743889842,200.0,0.00016295,2]
[391715748,1760743889924,200.0,0.00016321,2]
[391715749,1760743889992,200.0,0.00016347,2]
[391715750,1760743890061,200.0,0.00016373,2]
[391715751,1760743890122,200.0,0.00016399,2]
[391715752,1760743891119,200.0,0.00016426,2]
[391715753,1760743891186,200.0,0.00016452,2]
[391715754,1760743891385,200.0,0.00016478,2]
[391715755,1760743891425,200.0,0.00016504,2]
[391715756,1760743891461,200.0,0.0001653,2]
[391715757,1760743891496,200.0,0.00016556,2]
[391715758,1760743891534,200.0,0.00016583,2]
[391715759,1760743891601,200.0,0.00016609,2]
[391715760,1760743891664,200.0,0.00016635,2]
[391715761,1760743891729,200.0,0.00016661,2]
[391715762,1760743891800,200.0,0.00016687,2]
[391715763,1760743891867,200.0,0.00016713,2]
[391715764,1760743891931,200.0,0.0001674,2]
[391715765,1760743892006,200.0,0.00016766,2]
[391715766,1760743892090,200.0,0.00016792,2]
[391715767,1760743892165,-172.5,0.000253,2]
[391715768,1760743892205,200.0,0.00016818,2]
[391715769,1760743892244,200.0,0.00016844,2]
[391715770,1760743892287,200.0,0.0001687,2]
[391715771,1760743892364,200.0,0.00016897,2]
[391715772,1760743892433,28.5061173,0.00016923,2]
[391715773,1760743892456,171.4938827,0.00016923,2]
[391715774,1760743892505,200.0,0.00016949,2]
[391715775,1760743892580,200.0,0.00016975,2]
[391715776,1760743892665,200.0,0.00017001,2]
[391715777,1760743892744,200.0,0.00017027,2]
[391715778,1760743892816,200.0,0.00017054,2]
[391715779,1760743892897,200.0,0.0001708,2]
[391715780,1760743892966,200.0,0.00017106,2]
[391715781,1760743893032,200.0,0.00017132,2]
[391715782,1760743893843,-127.5,0.000253,2]
[391715783,1760743893865,-45.0,0.00025349,2]
[391715784,1760743894569,200.0,0.00017158,2]
[391715785,1760743894712,200.0,0.00017184,2]
[391715786,1760743894783,200.0,0.00017211,2]
[391715787,1760743894867,200.0,0.00017237,2]
[391715788,1760743894959,200.0,0.00017263,2]
[391715789,1760743895039,200.0,0.00017289,2]
[391715790,1760743895109,200.0,0.00017315,2]
[391715791,1760743895178,200.0,0.00017341,2]
[391715792,1760743895243,200.0,0.00017367,2]
[391715793,1760743895400,200.0,0.00017394,2]
[391715794,1760743895505,200.0,0.0001742,2]
[391715795,1760743895582,200.0,0.00017446,2]
[391715796,1760743895765,200.0,0.00017472,2]
[391715797,1760743895835,178.37,0.00027521,120]
[391715798,1760743895869,200.0,0.00017498,2]
[391715799,1760743895909,200.0,0.00017524,2]
[391715800,1760743895948,-110.36852801,0.00025349,2]
[391715801,1760743895970,-339.63147199,0.0002553,2]
[391715802,1760743895999,200.0,0.00017551,2]
[391715803,1760743896043,200.0,0.00017577,2]
[391715804,1760743896094,300.0,0.000161,2]
[391715805,1760743896123,200.0,0.00017603,2]
[391715806,1760743896413,200.0,0.00017629,2]
[391715807,1760743896474,200.0,0.00017655,2]
[391715808,1760743896561,200.0,0.00017681,2]
[391715809,1760743896626,200.0,0.00017708,2]
[391715810,1760743896689,200.0,0.00017734,2]
[391715811,1760743896754,200.0,0.0001776,2]
[391715812,1760743896825,200.0,0.00017786,2]
[391715813,1760743896903,200.0,0.00017812,2]
[391715814,1760743896973,200.0,0.00017838,2]
[391715815,1760743897088,200.0,0.00017865,2]
[391715816,1760743897149,200.0,0.00017891,2]
[391715817,1760743897260,337.01,0.00019408,2]
[391715818,1760743897440,200.0,0.00017917,2]
[391715819,1760743897517,200.0,0.00017943,2]
[391715820,1760743897584,200.0,0.00017969,2]
[391715821,1760743897790,200.0,0.00017995,2]
[391715822,1760743897835,674.03,0.00020333,2]
[391715823,1760743897863,200.0,0.00018022,2]
[391715824,1760743897915,200.0,0.00018048,2]
[391715825,1760743897959,88.97,0.00018074,2]
[391715826,1760743897983,111.03,0.00018074,2]
[391715827,1760743898017,9717.4861173,0.000181,2]
[391715828,1760743898041,10000.01,0.000181,2]
[391715829,1760743898065,10000.01,0.000181,2]
[391715830,1760743898090,10000.01,0.000181,2]
[391715831,1760743898114,10000.01,0.000181,2]
[391715832,1760743898138,2908.53170465,0.000181,2]
[391715833,1760743898691,1011.04,0.00021257,2]
[391715834,1760743899122,1348.06,0.00022181,2]
[391715835,1760743899595,1685.07,0.00023105,2]
[391715836,1760743900065,2022.09,0.00024029,2]
[391715837,1760743900495,2359.1,0.00024954,2]
[391715838,1760743902180,-300.0,0.000253,2]
[391715839,1760743902202,-19.11,0.0002553,2]
[391715840,1760743902611,1574.65,0.00025205,2]
[391715841,1760743902634,3425.35,0.00025205,2]
[391715842,1760743903773,-162.37964906,0.0002553,2]
[391715843,1760743906014,-489.93035094,0.0002553,2]
[391715844,1760743907771,-434.23587848,0.0002553,2]
[391715845,1760743907911,64.65412152,0.000161,2]
[391715846,1760743907936,235.34587848,0.000161,2]
[391715847,1760743910645,2860.71113124,0.00025205,2]
[391715848,1760743919221,3478.60299028,0.00023024,2]
[391715849,1760743919243,1521.39700972,0.00023024,2]
[391715850,1760743919362,4863.13397503,0.00019774,2]
[391715851,1760743919996,-300.0,0.000253,2]
[391715852,1760743922129,300.0,0.000161,2]
[391715853,1760743925760,3315.47901525,0.00025205,2]
[391715854,1760743925783,1684.52098475,0.00025205,2]
[391715855,1760743926463,-185.78076214,0.000253,2]
[391715857,1760743928651,-185.52008087,0.000253,2]
[391715858,1760743930154,-128.69915699,0.000253,2]
[391715859,1760743930175,-69.97195835,0.000253,2]
[391715860,1760743932566,-230.02804165,0.000253,2]
[391715861,1760743935543,480.13073422,0.0003389,120]
[391715862,1760743935801,300.0,0.000161,2]
[391715863,1760743947996,5000.0,0.00025205,2]
[391715864,1760743948556,300.0,0.000161,2]
[391715865,1760743954528,-280.32084301,0.000253,2]
[391715866,1760743961202,300.0,0.000161,2]
[391715867,1760743961993,-19.67915699,0.000253,2]
[391715868,1760743962015,-300.0,0.000253,2]
[391715870,1760743970919,2415.48901525,0.00025205,2]
[391715871,1760743970943,2584.51098475,0.00025205,2]
[391715872,1760743972469,-187.88947033,0.000253,2]
[391715873,1760743972899,300.0,0.000161,2]
[391715874,1760743975912,-112.11052967,0.000253,2]
[391715875,1760743975935,-127.76084301,0.000253,2]
[391715876,1760743978245,-167.36751622,0.000253,2]
[391715877,1760743979448,257.01,0.00019436,2]
[391715878,1760743979897,514.03,0.00020361,2]
[391715879,1760743980566,771.04,0.00021287,2]
[391715880,1760743981042,1028.05,0.00022212,2]
[391715881,1760743981127,-4.87164077,0.000253,2]
[391715882,1760743981148,-199.23471633,0.000253,2]
[391715883,1760743981435,1285.07,0.00023138,2]
[391715884,1760743982401,1542.08,0.00024063,2]
[391715885,1760743982844,1718.21901525,0.00024989,2]
[391715886,1760743982868,80.88098475,0.00024989,2]
[391715887,1760743983259,-100.76528367,0.000253,2]
[391715888,1760743983280,-134.39471633,0.000253,2]
[391715889,1760743984857,-165.60528367,0.000253,2]
[391715890,1760743985959,300.0,0.000161,2]
[391715891,1760743991338,166.2944247,0.000252,2]
[391715892,1760743992136,-203.41471633,0.000253,2]
[391715893,1760743994248,-96.58528367,0.000253,2]
[391715894,1760743994271,-155.50471633,0.000253,2]
[391715895,1760743994369,5000.0,0.00025205,2]
[391715896,1760743997506,-144.49528367,0.000253,2]
[391715897,1760743998808,300.0,0.000161,2]
[391715898,1760744001624,-300.0,0.000253,2]
[391715899,1760744018068,-182.27558414,0.000253,2]
[391715900,1760744021437,-117.72441586,0.000253,2]
[391715901,1760744032636,4152.83459055,0.00025205,2]
[391715902,1760744032668,847.16540945,0.00025205,2]
[391715903,1760744055811,5000.0,0.00025205,2]
[391715904,1760744060838,196.98,0.00019824,2]
[391715905,1760744061292,393.95,0.00020768,2]
[391715906,1760744062259,590.93,0.00021712,2]
[391715907,1760744062716,787.9,0.00022656,2]
[391715908,1760744063698,984.88,0.000236,2]
[391715909,1760744064153,1181.85,0.00024544,2]
[391715910,1760744078336,16.35459055,0.00025205,2]
[391715911,1760744078363,4983.64540945,0.00025205,2]
[391715912,1760744090737,616.54226433,0.00025205,2]
[391715913,1760744100997,4399.82232622,0.00025205,2]
[391715914,1760744101023,600.17767378,0.00025205,2]
[391715915,1760744121485,-167.36751622,0.00025388,2]
[391715916,1760744124289,5000.0,0.00025205,2]
[391715917,1760744143368,150.0,0.00019831,2]
[391715918,1760744143827,292.48,0.00020776,2]
[391715919,1760744144310,438.71,0.0002172,2]
[391715920,1760744144725,584.95,0.00022664,2]
[391715921,1760744144784,417.15472785,0.00025205,2]
[391715922,1760744145134,731.19,0.00023609,2]
[391715923,1760744145587,877.43,0.00024553,2]
[391715924,1760744146947,907.91759837,0.00025205,2]
[391715925,1760744147119,4092.08240163,0.00025205,2]
[391715926,1760744170142,5000.0,0.00025205,2]
[391715927,1760744170695,907.92759837,0.00025205,2]
[391715928,1760744170720,9948.55245886,0.00025205,2]
[391715929,1760744193348,51.45754114,0.00025205,2]
[391715930,1760744193373,4948.54245886,0.00025205,2]
[391715931,1760744200585,276.39625632,0.00021918,7]
[391715932,1760744222337,4775.07128482,0.00025205,2]
[391715933,1760744222362,224.92871518,0.00025205,2]
[391715934,1760744230273,726.74,0.00029041,120]
[391715935,1760744239110,150.0,0.00020111,2]
[391715936,1760744239544,214.21,0.00021069,2]
[391715937,1760744240137,321.31,0.00022026,2]
[391715938,1760744241264,428.42,0.00022984,2]
[391715939,1760744242008,535.52,0.00023942,2]
[391715940,1760744242445,642.63,0.000249,2]
[391715941,1760744245460,5000.0,0.00025205,2]
[391715942,1760744269273,2482.99128482,0.00025205,2]
[391715943,1760744269297,2517.00871518,0.00025205,2]
[391715944,1760744279765,198.96,0.00015205,20]
[391715945,1760744280046,198.96,0.00015205,20]
[391715946,1760744280539,198.95,0.00015205,20]
[391715947,1760744286517,-347.46118693,0.000253,2]
[391715948,1760744288201,-152.53881307,0.000253,2]
[391715949,1760744291836,5000.0,0.00025205,2]
[391715950,1760744314428,1886.13128482,0.00025205,2]
[391715951,1760744314452,3113.86871518,0.00025205,2]
[391715952,1760744320445,150.0,0.00019409,2]
[391715953,1760744320937,155.87,0.00020333,2]
[391715954,1760744321508,205.31908193,0.00021257,2]
[391715955,1760744321534,28.48091807,0.00021257,2]
[391715956,1760744321865,311.73,0.00022182,2]
[391715957,1760744322352,389.66,0.00023106,2]
[391715958,1760744322423,3976.47663348,0.00025205,2]
[391715959,1760744322788,467.6,0.0002403,2]
[391715960,1760744323268,545.53,0.00024954,2]
[391715961,1760744338602,860.79373327,0.00024975,14]
[391715962,1760744338625,348.90807523,0.00024975,14]
[391715963,1760744338918,5000.0,0.00025205,2]
[391715964,1760744339666,-330.702105,0.00025225,14]
[391715965,1760744343029,-280.04871441,0.00025225,14]
[391715966,1760744347681,4651.10192477,0.00025205,2]
[391715967,1760744347710,348.89807523,0.00025205,2]
[391715968,1760744354657,168.9515292,0.00012691,2]
[391715969,1760744364178,5000.0,0.00025205,2]
[391715970,1760744372563,4482.16039557,0.00025205,2]
[391715971,1760744372587,517.83960443,0.00025205,2]
[391715972,1760744387752,5000.0,0.00025205,2]
[391715973,1760744396013,4482.17039557,0.00025205,2]